Cogmind - Beta 13 @@@ ROGUE MODE // 2024.03.26 @ 07:34:23 // Winter2019/RPGLIKE Player: 3.2.1.HEAT DEATH Result: Destroyed by G-34 Mercenary with Small Laser Performance ------------- Evolutions (0) 0 Regions Visited (1) 200 Robots Destroyed (7) 35 Value Destroyed (125) 125 Prototype IDs (0) 0 Alien Tech Used (0) 0 Bonus (0) 0 TOTAL SCORE: 360 Bonus ------- None Cogmind --------- Core Integrity 0/600 Matter 300/300 Energy 6/250 System Corruption 0% Temperature Critical (571) Movement Core (200) Ox3 Location -10/Materials Parts ------- > --- POWER (1) -------- Ion Engine > --- PROPULSION (1) --- (None) > --- UTILITY (2) ------ Improved Terrain Scanner > --- WEAPON (4) ------- EM Pulse Gun Mining Laser Mining Laser Mining Laser > --- INVENTORY (0) ---- (None) Peak State ------------ > --- POWER ------------ Ion Engine > --- PROPULSION ------- Compact Wheel > --- UTILITY ---------- Improved Terrain Scanner > --- WEAPON ----------- EM Pulse Gun Mining Laser Mining Laser Mining Laser > --- INVENTORY -------- (None) [Rating: 9] Favorites ----------- Power Ion Engine Engine Ion Engine Propulsion Compact Wheel Wheel Compact Wheel Utility Improved Terrain Scanner Device Improved Terrain Scanner Weapon Mining Laser Energy Gun EM Pulse Gun Special Weapon Mining Laser Build | -11 -10 ------- Run | Yrd Mat Slots Evolved 4 | 4 . Power . | . . Propulsion . | . . Utility 1 | 1 . Weapon 3 | 3 . Parts Attached 7 | 7 . Power 1 | 1 . Engine 1 | 1 . Core . | . . Reactor . | . . Propulsion 1 | 1 . Treads . | . . Leg . | . . Wheel 1 | 1 . Hover . | . . Flight . | . . Utility 1 | 1 . Device 1 | 1 . Storage . | . . Processor . | . . Hackware . | . . Protection . | . . Artifact . | . . Weapon 4 | 4 . Energy Gun 1 | 1 . Energy Cannon . | . . Ballistic Gun . | . . Ballistic Cannon . | . . Launcher . | . . Special Weapon 3 | 3 . Impact Weapon . | . . Slashing Weapon . | . . Piercing Weapon . | . . Special Melee Weapon . | . . Unidentified Prototypes . | . . Parts Lost 1 | . 1 Power . | . . Propulsion 1 | . 1 Utility . | . . Weapon . | . . Highest Loss Streak 1 | . 1 To Critical Strikes . | . . Average Slot Usage (%) 87 | . 87 Engine 12 | . 12 Wheel 12 | . 12 Device 12 | . 12 Energy Gun 12 | . 12 Special Weapon 37 | . 37 Naked Turns . | . . Heaviest Build 11 | 11 11 Greatest Support 16 | 16 16 Greatest Overweight (x) 3 | 2 3 Average Overweight (x) . | . . Largest Inventory Capacity . | . . Average Capacity . | . . Most Carried . | . . Average Carried . | . . Final Capacity . | . . Final Carried . | . . Class Distribution -------------------- 100% | Scavenger-Gunner Dominant Class ---------------- Scavenger-Gunner | -10/Materials Resources | -11 -10 ----------- Run | Yrd Mat Matter Collected 270 | 226 44 Remotely . | . . Salvage Created 189 | 140 49 Parts 15 | 12 3 Haulers Intercepted . | . . Recyclers Shooed 1 | 1 . Parts Field Recycled . | . . Retrieved Matter . | . . Parts Self-Destructed . | . . Prevented . | . . Kills | -11 -10 ------- Run | Yrd Mat Combat Hostiles Destroyed 2 | . 2 Cannons 2 | . 2 Classes Destroyed 3 | 2 1 Tunneler 4 | 4 . Recycler 1 | 1 . Grunt 2 | . 2 Best Kill Streak 3 | 3 1 Combat Bots Only 1 | . 1 Max Kills in Single Turn 1 | 1 1 Gunslinging . | . . Exploded . | . . Melee . | . . Uniques/NPCs Destroyed . | . . Combat | -11 -10 -------- Run | Yrd Mat Hostile Shots Fired 53 | . 53 Missed 2 | . 2 Damage Taken 730 | . 730 Core 606 | . 606 Absorbed by Shields . | . . Redirected to Core 393 | . 393 Core Remaining (%) 100 | 100 . Volleys Fired 28 | 16 12 Largest 4 | 3 4 Hottest 340 | 240 340 Shots Fired 43 | 20 23 Gun 23 | 16 7 Cannon . | . . Launcher . | . . Special 20 | 4 16 Kinetic . | . . Thermal 20 | 4 16 Explosive . | . . Electromagnetic 23 | 16 7 Robot Hit Streak 4 | 4 2 Robot Miss Streak 3 | 2 3 Penetration Max . | . . Secondary Targets . | . . Shots Hit Robots 20 | 11 9 Core Hits 10 | 6 4 Critical Kills . | . . Critical Parts Destroyed . | . . Critical Strikes 1 | . 1 Corrupt 1 | . 1 Melee Attacks . | . . Impact . | . . Slashing . | . . Piercing . | . . Sneak Attacks . | . . Combat Hostiles . | . . Follow-up Attacks . | . . Damage Inflicted 366 | 182 184 Guns 174 | 134 40 Cannons . | . . Explosions . | . . Melee . | . . Ramming . | . . Kinetic . | . . Thermal 192 | 48 144 Explosive . | . . Electromagnetic 174 | 134 40 Impact . | . . Slashing . | . . Piercing . | . . Highest Corruption . | . . Average Corruption . | . . Corruption Purged . | . . Corruption Blocked . | . . Overload Shots . | . . Overflow Damage 7 | 7 . Projectiles 7 | 7 . Explosions . | . . Melee . | . . Knockbacks . | . . Impact . | . . Kinetic . | . . Secondary . | . . Self-Inflicted Damage . | . . Shots . | . . Rammed . | . . Targets Rammed . | . . Kicked . | . . Crushed . | . . Highest Temperature 629 | 98 629 Average Temperature 304 | 50 424 Received Heat Transfer 360 | . 360 Effects 23 | . 23 Shutdowns 4 | . 4 Energy Bleed 2 | . 2 Interference 7 | . 7 Damage (minor) 4 | . 4 Damage (major) 5 | . 5 Damage (core) 1 | . 1 Siege Activations . | . . Robots Corrupted . | . . Combat Hostiles . | . . Parts Fried 1 | 1 . Impact Corruptions . | . . Robots Melted . | . . Combat Hostiles . | . . Parts Melted . | . . Heat Transferred 400 | 100 300 Parts Sabotaged . | . . Parts Stolen . | . . Parts Stripped . | . . Power Chain Reactions . | . . Alert | -11 -10 ------- Run | Yrd Mat Peak Influence 86 | 25 86 Initial 16 | . 16 Average 30 | 10 52 Maximum Alert Level . | . . Low Security (%) 100 | 100 100 Level 1 . | . . Level 2 . | . . Level 3 . | . . Level 4 . | . . Level 5 . | . . High Security . | . . Max Security . | . . Squads Dispatched . | . . Investigation . | . . Extermination . | . . Reinforcement . | . . Assault . | . . Garrison . | . . Intercept . | . . Searches Triggered . | . . Construction Impeded . | . . Haulers Reinforced . | . . Active Scanning Responses . | . . Cargo Convoy Interrupts . | . . Stealth | -11 -10 --------- Run | Yrd Mat Distress Signals . | . . Communications Jammed . | . . Distress Signals . | . . Times Spotted 4 | . 4 Peak Tracking Total 4 | . 4 Tactical Retreats . | . . Traps | -11 -10 ------- Run | Yrd Mat Traps Triggered . | . . Indirectly . | . . Trap Hack Attempts . | . . Triggered . | . . Disarmed . | . . Reprogrammed . | . . Reused . | . . Traps Extracted . | . . Installed . | . . Triggered . | . . Machines | -11 -10 ---------- Run | Yrd Mat Machines Disabled 1 | . 1 Max in Single Turn 1 | . 1 Machines Repaired . | . . Machines Dismantled . | . . Machines Sabotaged . | . . Overloaded Fab Kills . | . . Hacking | -11 -10 --------- Run | Yrd Mat Machines Accessed . | . . Terminals . | . . Fabricators . | . . Repair Stations . | . . Recycling Units . | . . Scanalyzers . | . . Garrison Access . | . . Total Hacks . | . . Successful . | . . Failed . | . . Catastrophic . | . . Database Lockouts . | . . Manual . | . . Terminals . | . . Fabricators . | . . Repair Stations . | . . Recycling Units . | . . Scanalyzers . | . . Garrison Access . | . . Terminal Hacks . | . . Fabricator Hacks . | . . Repair Station Hacks . | . . Recycling Unit Hacks . | . . Scanalyzer . | . . Garrison Access Hacks . | . . Unauthorized Hacks . | . . Terminals . | . . Fabricators . | . . Repair Stations . | . . Recycling Units . | . . Scanalyzers . | . . Garrison Access . | . . Data Cores Recovered . | . . Used . | . . Hacking Detections . | . . Full Trace Events . | . . Feedback Events . | . . Feedback Blocked . | . . Robot Schematics Acquired . | . . Robots Built . | . . Authchips . | . . Time . | . . Total Robot Build Rating . | . . Part Schematics Acquired . | . . Parts Built . | . . Authchips . | . . Time . | . . Total Part Build Rating . | . . Parts Repaired . | . . Time . | . . Parts Recycled . | . . Recycled Matter . | . . Retrieved Matter . | . . Retrieved Components . | . . Parts Scanalyzed . | . . Part Schematics Acquired . | . . Parts Damaged . | . . Bothacking | -11 -10 ------------ Run | Yrd Mat Used RIF Installer . | . . Robots Hacked . | . . Non-combat . | . . Combat . | . . Robot Hacks Applied . | . . Relay Couplers Released . | . . Fabnet Peak Effective % . | . . Robots Rewired . | . . Allies Hacked . | . . Hacks Repelled . | . . Allies | -11 -10 -------- Run | Yrd Mat Total Allies . | . . Largest Group . | . . Highest-Rated Group . | . . Highest-Rated Ally . | . . Total Orders . | . . Ally Attacks . | . . Total Damage . | . . Kills . | . . Allies Corrupted . | . . Allies Melted . | . . Intel | -11 -10 ------- Run | Yrd Mat Robot Analysis Total . | . . Derelict Logs Recovered . | . . Drone Launches . | . . Drone Recoveries . | . . Exploration | -11 -10 ------------- Run | Yrd Mat Turns Passed 205 | 107 98 Spaces Moved 86 | 56 30 Core 15 | 14 1 Treads . | . . Legs . | . . Wheels 71 | 42 29 Hover . | . . Flight . | . . Fastest Speed 50 | 50 100 Average Speed 98 | 96 103 Slowest Speed 200 | 150 200 Overloaded Moves . | . . Propulsion Burnouts . | . . Robots Hopped . | . . Cave-ins Triggered . | . . Exploration Rate (%) 6 | 5 8 Regions Visited 1 Branch Regions . Pre-discovered Areas . | . . Known Exits Taken . | . . Unknown Exits Taken 1 | 1 . Scrap Searched . | . . Spaces Dug . | . . Terrain Destroyed 6 | . 6 Melee . | . . Projectile 6 | . 6 AOE . | . . Terrain Rammed . | . . Walls Destroyed . | . . Machines Disabled . | . . Actions | -11 -10 --------- Run | Yrd Mat Total 128 | 78 50 Wait 8 | . 8 Move 85 | 55 30 Hop . | . . Pick Up . | . . Fast Attach 7 | 7 . Attach . | . . Detach . | . . Swap . | . . Drop . | . . Fire 28 | 16 12 Melee . | . . Ram . | . . Kick . | . . Crush . | . . Escape Stasis . | . . Rewire . | . . Trap . | . . Miscellaneous . | . . Route ------- -11/Scrapyard -10/Materials History --------- Turn | Location | Event 2 | -11/Scrapyard | Upgraded with Utility slot (x1) 2 | -11/Scrapyard | Upgraded with Weapon slot (x3) 5 | -11/Scrapyard | Discovered new exit (range 15) 108 | -11/Scrapyard | Entered Materials 181 | -10/Materials | Core integrity fell below 50% 197 | -10/Materials | Core integrity fell below 20% 206 | -10/Materials | Destroyed by G-34 Mercenary with Small Laser Last Messages --------------- 00187_ Overheating: Ion Engine damaged (-12). 00188_ Overheating: Mining Laser damaged (-4). 00189_ Overheating: System interference. 00189_ Mining Laser temporarily disabled. 00191_ Power failure, Ion Engine shutdown. 00194_ Overheating: System interference. 00194_ Mining Laser temporarily disabled. 00194_ U-05 Engineer builds a Wall. 00195_ Overheating: EM Pulse Gun damaged (-12). 00197_ Overheating: Core damaged (-108). 00198_ U-05 Engineer builds a Wall. 00201_ Com. Wheel destroyed. 00202_ Power failure, Ion Engine shutdown. 00202_ Overheating: Ion Engine damaged (-8). 00202_ Overheating: Mining Laser damaged (-5). 00202_ Overheating: Mining Laser damaged (-1). 00203_ Overheating: System interference. 00203_ EM Pulse Gun temporarily disabled. 00204_ U-05 Engineer builds a Wall. Map ----- +----------------------------------------------------+ | ??????????????????????????????????? | | ??????????????????????????????????? | | ??????????????????????????????????? | | ??????????????????????????????????? | | ??????????????????????????????????? | | ??????????????????????????????????? | | ??????????????????????????????????? | | ????????#??????????? ???????????? | | ???????????????????? ??????????? | | ????#??#???????????? "??????????? | | ??????#??#?????????# ""?????????? | | #####????# ????"??? "??????????? | | ? ? # ????????# ??????????? | | # T [ ??# ????????# ????????? | | # ?# ######+## #??????????? | | # # #??????????? | | ???? / #?#????????? | | #????????# #??????????? | | ?????????### #"##### #??????????? | | ??????????#" ##????# #??????????? | | ??????????## #?????# #??????????? | | ?????????###g####### #??????????? | | ?????????# % ] + #??#???????? | | ????#???##u # #??????????? | | ?#???# ##;g%"""""" # #??????????? | | ?????# /@%"""""" # #??????????? | | ?#???##### %"""""" # #??????#???? | | ????#????# """"""" # #??????????? | | ?????????# """"""" # #??????????? | | ?????????# # #??????????? | | ?????????###############??????????? | | ??#???????????????????????????????? | | ????????????#?????????????????????? | | ??????????????#???????????????????? | | ??????????????????????????????????? | | ??????????????????#???????????????? | | ??????#???????????????????????????? | | ??????????????????????????????????? | | ?????????????????????????????? ???? | | ??????????????????????????????????? | | | | | | | | | | | | | | | | | | | | | +----------------------------------------------------+ Best States ------------- Heat Dissipation 25 Energy Generation 10 Energy Capacity 250 Matter Stores 300 Matter Capacity 300 Sight Range 16 Terrain Scan Range 16 Terrain Scan Density 10 Evasion (%) 40 Item Schematics ----------------- None Robot Schematics ------------------ None Fabricated ------------ Nothing Alien Tech Used ----------------- None Achievements -------------- None Challenges ------------ None RPGLIKE | -11 -10 --------- Run | Yrd Mat Levels Raised . | . . XP Earned 3325 | 3000 325 XP Spent 2900 | 2900 . Upgrades 4 | 4 . Utility Slot 1 | 1 . Weapon Slot 3 | 3 . Protomatter Created . | . . Protomatter Decayed . | . . Game ------ Seed MyomerAuthchipChronowheel Manual? 0 Play Time 00:03:13 Cumulative 655.0 hours Start 2024.03.26 @ 07:32:14 End 2024.03.26 @ 07:34:23 Sessions 1 Manual Loads 0 Difficulty Rogue Special Mode Winter2019/RPGLIKE Game No. 259 Rogue 235 Adventurer 3 Explorer 21 Win Type - Total 15 Types 10/2/1/1/0/1/0/0/0 Lore% 90 Gallery% 96 Achievement% 83 Wizard Run 0 Options --------- Layout 2 ASCII 0 Keyboard 0 Movement Numpad Keybinds 0 Fullscreen 2 Font 24/Smallcaps Map View 50x44 Zoom Use 0% Tactical HUD 1 Map Filters NONE Filters NONE Steam X RUN: 5038f744-183a-49f2-b7fd-cdead59b220f